Cogmind - Beta 16 @@@ ROGUE MODE // 2025.12.13 @ 11:37:39 Player: PE-P51 Result: Self-destructed Performance ------------- Evolutions (4) 2000 Regions Visited (6) 1200 Robots Destroyed (51) 255 Value Destroyed (1603) 1603 Prototype IDs (1) 20 Alien Tech Used (0) 0 Bonus (120) 120 TOTAL SCORE: 5198 Bonus ------- Follower Combat Kills 120 Cogmind --------- Core Integrity 636/850 Matter 265/300 Energy 21/100 System Corruption 13% Temperature Cool (0) Movement Core (1400) Ox27 Location -6/Factory Parts ------- > --- POWER (1) -------- (None) > --- PROPULSION (4) --- Flexi-carbon Leg > --- UTILITY (7) ------ Improved Heat Sink Huge Storage Unit Subdweller Optics Advanced Signal Interpreter Advanced Signal Interpreter Improved Target Analyzer > --- WEAPON (3) ------- (None) > --- INVENTORY (25) --- Microactuators Authchip [R/Combat] Authchip [R/Combat] Authchip [R/Combat] Authchip [R/Combat] Authchip [Propulsion] Authchip [Device] Authchip [Device] Authchip [Processor] Authchip [Processor] Authchip [Armor] Thief Drone Bay (2/3) Autobeam Light EM Pulse Cannon Improved Datajack CPS Tube (2) CPS Tube (2) CPS Tube (2) Multitool Maul Peak State ------------ > --- POWER ------------ Light Angular Momentum Engine > --- PROPULSION ------- Improved Treads Flexi-carbon Leg Compact Wheel Gravmag System > --- UTILITY ---------- Improved Heat Sink Cooling System Huge Storage Unit Subdweller Optics Advanced Signal Interpreter Advanced Signal Interpreter Improved Target Analyzer > --- WEAPON ----------- Spread Laser Plasma Rifle Plasma Rifle > --- INVENTORY -------- Deuterium Engine Microactuators Authchip [R/Combat] Authchip [R/Combat] Authchip [R/Combat] Authchip [R/Combat] Authchip [Propulsion] Authchip [Device] Authchip [Device] Authchip [Processor] Authchip [Processor] Authchip [Armor] Thief Drone Bay Autobeam Light EM Pulse Cannon EMP Blaster Improved Datajack Plasma Cutter CPS Tube CPS Tube CPS Tube Multitool Maul [Rating: 59] Favorites ----------- Power Ion Engine Engine Ion Engine Propulsion Subdweller Monowheel Treads Light Treads Leg Flexi-carbon Leg Wheel Subdweller Monowheel Hover Unit Gravmag System Utility Huge Storage Unit Device Improved Heat Sink Storage Huge Storage Unit Processor Advanced Signal Interpreter Protection Hardened Light Armor Plating Weapon Spread Laser Energy Gun Spread Laser Energy Cannon Light EM Pulse Cannon Ballistic Gun Assault Rifle Launcher EMP Blaster Special Weapon Mining Laser Impact Weapon Maul Build | -11 -10 -10 -10 -9 -9 -6 ------- Run | Yrd Mat Min Sub Rec Scr Fac Slots Evolved 8 | . . . . . . 8 Power . | . . . . . . . Propulsion 2 | . . . . . . 2 Utility 5 | . . . . . . 5 Weapon 1 | . . . . . . 1 Parts Attached 68 | 7 11 1 15 7 7 20 Power 8 | 1 3 . 2 . 1 1 Engine 8 | 1 3 . 2 . 1 1 Core . | . . . . . . . Reactor . | . . . . . . . Propulsion 17 | 2 1 . 4 1 4 5 Treads 8 | 2 1 . 1 1 2 1 Leg 2 | . . . . . . 2 Wheel 6 | . . . 3 . 2 1 Hover 1 | . . . . . . 1 Flight . | . . . . . . . Utility 18 | 2 3 1 2 . 2 8 Device 9 | 1 1 1 1 . . 5 Storage 3 | 1 2 . . . . . Processor 3 | . . . . . . 3 Hackware . | . . . . . . . Protection 3 | . . . 1 . 2 . Artifact . | . . . . . . . Weapon 25 | 2 4 . 7 6 . 6 Energy Gun 9 | . 1 . 3 2 . 3 Energy Cannon 7 | . 3 . 1 3 . . Ballistic Gun 5 | 2 . . 2 . . 1 Ballistic Cannon . | . . . . . . . Launcher 1 | . . . . . . 1 Special Weapon 2 | . . . 1 . . 1 Impact Weapon 1 | . . . . 1 . . Slashing Weapon . | . . . . . . . Piercing Weapon . | . . . . . . . Special Melee Weapon . | . . . . . . . Unidentified Prototypes 1 | . . 1 . . . . Corrupted Parts 1 | . . . . . . 1 System Corruption 1 | . . . . . . 1 Parts Lost 25 | . 1 . 7 . . 17 Power 3 | . . . 1 . . 2 Propulsion 8 | . . . 3 . . 5 Utility 5 | . 1 . 1 . . 3 Weapon 9 | . . . 2 . . 7 Highest Loss Streak 8 | . 1 . 4 . . 8 To Critical Strikes . | . . . . . . . Average Backups 15 | 2 7 9 8 18 23 23 Power . | . 1 1 . . . . Propulsion . | 1 2 1 . . . . Utility 9 | . 2 5 4 13 14 11 Weapon 3 | . 1 2 2 2 3 4 Tool/Special . | . . . . . . . Unused Backups 30 | . 8 1 1 1 3 16 Power 2 | . 1 . . 1 . . Propulsion 2 | . 2 . . . . . Utility 18 | . 3 1 . . 3 11 Weapon 3 | . 2 . 1 . . . Tool/Special 5 | . . . . . . 5 Average Slot Usage (%) 94 | . 99 100 87 100 100 85 Engine 13 | . 14 14 13 14 14 5 Treads 14 | . 28 28 11 11 14 14 Wheel 9 | . . . 6 16 14 5 Device 6 | . 13 14 9 . . 17 Storage 13 | . 14 14 14 14 14 6 Protection 8 | . . . 4 14 14 3 Energy Gun 11 | . 8 . 8 14 14 11 Energy Cannon 11 | . 5 28 14 11 14 . Ballistic Gun 2 | . 14 . 2 . . 4 Peak Build Rating 59 | 9 12 16 18 18 22 59 Average Rating 18 | 6 10 13 13 17 20 44 On Entrance 12 | . 9 12 13 17 18 21 Avg Prop Armor Cover (%) 6 | . . . 4 4 5 16 Naked Turns . | . . . . . . . Heaviest Build 122 | 14 92 27 32 97 103 122 Greatest Support 46 | 40 40 40 40 40 23 46 Greatest Overweight (x) 8 | . 2 . 8 4 6 7 Average Overweight (x) 2 | . . . . 2 5 6 Largest Inventory Capacity 25 | 8 25 10 25 25 25 25 Average Capacity 17 | 7 8 10 10 21 25 25 Most Carried 25 | 4 10 10 10 22 25 25 Average Carried 16 | 2 7 10 9 19 24 23 Final Capacity 25 | 8 10 10 10 25 25 25 Final Carried 25 | 4 10 10 10 22 25 20 Class Distribution -------------------- 81% | Mutant 10% | Scavenger-Mutant 4% | Tank Dominant Class ---------------- Mutant | -10/Materials Mutant | -10/Mines Mutant | -10/Subcaves Mutant | -9/Recycling Mutant | -9/Scraptown Tank | -6/Factory Resources | -11 -10 -10 -10 -9 -9 -6 ----------- Run | Yrd Mat Min Sub Rec Scr Fac Matter Collected 1514 | 338 437 70 258 60 90 261 Remotely . | . . . . . . . Salvage Created 2038 | 178 661 . 325 114 . 760 Parts 110 | 19 36 . 20 6 . 29 Haulers Intercepted 2 | . 2 . . . . . Recyclers Shooed 1 | . . . . . . 1 Parts Field Recycled . | . . . . . . . Retrieved Matter . | . . . . . . . Parts Self-Destructed 10 | . . . 10 . . . Prevented . | . . . . . . . Parts Restored . | . . . . . . . Kills | -11 -10 -10 -10 -9 -9 -6 ------- Run | Yrd Mat Min Sub Rec Scr Fac Combat Hostiles Destroyed 37 | . 14 . 11 1 . 11 Guns 27 | . 12 . 7 . . 8 Cannons 7 | . 2 . 4 1 . . AOE 3 | . . . . . . 3 Classes Destroyed 16 | 3 4 . 3 1 . 5 Worker 3 | 2 . . . . . 1 Tunneler 3 | 3 . . . . . . Hauler 2 | . 2 . . . . . Recycler 3 | 1 . . . 1 . 1 Operator 1 | . 1 . . . . . Turret 1 | . . . 1 . . . Watcher 1 | . 1 . . . . . Swarmer 6 | . . . 4 . . 2 Grunt 16 | . 14 . . . . 2 Brawler 1 | . . . . . . 1 Protector 1 | . . . . . . 1 Sentry 1 | . . . . 1 . . Specialist 1 | . . . . . . 1 Hunter 1 | . . . . . . 1 Programmer 3 | . . . . . . 3 Subdweller 7 | . . . 7 . . . Best Kill Streak 4 | 4 4 . 3 1 . 4 Combat Bots Only 4 | . 3 . 3 1 . 4 Max Kills in Single Turn 3 | 1 1 . 1 1 . 3 Gunslinging 1 | . . . . . . 1 Exploded 3 | . . . . . . 3 Melee . | . . . . . . . Uniques/NPCs Destroyed . | . . . . . . . Combat | -11 -10 -10 -10 -9 -9 -6 -------- Run | Yrd Mat Min Sub Rec Scr Fac Hostile Shots Fired 255 | . 56 . 73 4 . 122 Missed 65 | . 10 . 24 . . 31 Hits 190 | . 46 . 49 4 . 91 Melee 6 | . . . . . . 6 Projectile 184 | . 46 . 49 4 . 85 AOE 2 | . . . 2 . . . Critical Strikes 6 | . 1 . . . . 5 Damage Taken 3350 | . 580 . 1071 60 . 1639 Core 460 | . 113 . 133 . . 214 Absorbed by Shields 47 | . . . . . . 47 Core Remaining (%) 50 | 100 . . . . 1 . Volleys Fired 170 | 17 61 . 54 2 . 36 Largest 3 | 2 2 . 2 2 . 3 Hottest 215 | 40 136 . 155 121 . 215 Shots Fired 326 | 34 114 . 90 4 . 84 Gun 258 | 34 100 . 42 2 . 80 Cannon 54 | . 14 . 38 2 . . Launcher 4 | . . . . . . 4 Special 10 | . . . 10 . . . Kinetic 142 | 34 82 . 4 . . 22 Thermal 162 | . 32 . 86 2 . 42 Explosive . | . . . . . . . Electromagnetic 22 | . . . . 2 . 20 Robot Hit Streak 14 | 4 14 . 13 8 . 12 Robot Miss Streak 7 | 2 3 . 7 1 . 5 Penetration Max . | . . . . . . . Secondary Targets 2 | . . . . . . 2 Max Gunslinging Chain 1 | . . . . . . 1 Autonomous 5 | . . . 5 . . . Shots Hit Robots 203 | 19 79 . 52 4 . 49 Core Hits 95 | 8 32 . 18 4 . 33 Critical Kills . | . . . . . . . Critical Parts Destroyed 1 | . 1 . . . . . Critical Strikes 12 | . 4 . 2 . . 6 Burn 8 | . 3 . 2 . . 3 Destroy 1 | . 1 . . . . . Corrupt 3 | . . . . . . 3 Melee Attacks 2 | . . . . 2 . . Impact 2 | . . . . 2 . . Slashing . | . . . . . . . Piercing . | . . . . . . . Sneak Attacks . | . . . . . . . Combat Hostiles . | . . . . . . . Follow-up Attacks . | . . . . . . . Damage Inflicted 4537 | 202 997 . 1090 84 . 2164 Guns 2628 | 202 868 . 533 39 . 986 Cannons 730 | . 128 . 557 45 . . Explosions 1166 | . . . . . . 1166 Melee . | . . . . . . . Ramming 13 | . 1 . . . . 12 Kinetic 1112 | 202 647 . 79 . . 184 Thermal 2690 | . 349 . 1011 39 . 1291 Explosive 262 | . . . . . . 262 Electromagnetic 460 | . . . . 45 . 415 Impact . | . . . . . . . Slashing . | . . . . . . . Piercing . | . . . . . . . Highest Corruption 13 | . . . . . . 13 Average Corruption 9 | . . . . . . 9 Corruption Purged . | . . . . . . . Corruption Blocked . | . . . . . . . Effects 18 | . . . . . . 18 Message Errors 7 | . . . . . . 7 Matter Fused 1 | . . . . . . 1 Energy Discharges 4 | . . . . . . 4 Parts Rejected 1 | . . . . . . 1 Data Loss (minor) 1 | . . . . . . 1 Data Loss (major) 1 | . . . . . . 1 Alerts 1 | . . . . . . 1 Weapon Failures 2 | . . . . . . 2 Overload Shots . | . . . . . . . Overflow Damage 61 | . 5 . . . . 56 Projectiles 5 | . 5 . . . . . Explosions 56 | . . . . . . 56 Melee . | . . . . . . . Knockbacks . | . . . . . . . Impact . | . . . . . . . Kinetic . | . . . . . . . Secondary . | . . . . . . . Self-Inflicted Damage 32 | . . . . . . 32 Shots 1 | . . . . . . 1 Rammed 3 | . 2 . . . . 1 Targets Rammed 3 | . 2 . . . . 1 Kicked . | . . . . . . . Crushed . | . . . . . . . Highest Temperature 165 | . 111 . 165 75 . 42 Average Temperature 31 | . 19 . 48 37 . 14 Received Heat Transfer 709 | . 342 . 156 18 . 193 Siege Activations . | . . . . . . . Martial Activations . | . . . . . . . Shielding Activations . | . . . . . . . Robots Disrupted . | . . . . . . . Combat Hostiles . | . . . . . . . Robots Corrupted . | . . . . . . . Combat Hostiles . | . . . . . . . Parts Fried . | . . . . . . . Impact Corruptions . | . . . . . . . Robots Melted . | . . . . . . . Combat Hostiles . | . . . . . . . Parts Melted 15 | . 2 . 5 . . 8 Heat Transferred 4830 | . 999 . 1791 50 . 1990 Parts Sabotaged 4 | . . . . . . 4 Parts Stolen . | . . . . . . . Parts Stripped . | . . . . . . . Power Chain Reactions 1 | . . . . . . 1 Alert | -11 -10 -10 -10 -9 -9 -6 ------- Run | Yrd Mat Min Sub Rec Scr Fac Maximum Alert Level . | . . . . . . . Low Security (%) 100 | 100 100 100 . 100 . 100 Level 1 . | . . . . . . . Level 2 . | . . . . . . . Level 3 . | . . . . . . . Level 4 . | . . . . . . . Level 5 . | . . . . . . . High Security . | . . . . . . . Max Security . | . . . . . . . Peak Influence 141 | 10 102 17 . 55 . 141 Initial 17 | . . 17 . 4 . . Average 18 | 1 38 3 . 6 . 20 Influence Increases 1421 | 30 519 . 252 255 . 365 Destroy 0b10 Robot/C 600 | . 280 . 100 20 . 200 Destroy 0b10 Robot/NC 70 | 30 20 . . 5 . 15 Destroy Leader 126 | . 76 . . . . 50 Allied During Kill 2 | . . . 2 . . . Successful Hack 40 | . 22 . . 18 . . Select Force Hacks 270 | . 60 . . 210 . . Disable Machine 75 | . 15 . . . . 60 Destroy Structure 13 | . 1 . . 2 . 10 Partial Spotted 15 | . 15 . . . . . Lose Combat Pursuer 210 | . 30 . 150 . . 30 Influence Decreases 1350 | 30 473 46 241 266 . 294 Entered New Map 36 | . . 29 . 7 . . Time Decay 1108 | 30 463 17 181 259 . 158 Lost Part 186 | . 10 . 40 . . 136 Lost Ally 20 | . . . 20 . . . Squads Dispatched 7 | . 5 . . . . 2 Investigation 4 | . 4 . . . . . Extermination 2 | . . . . . . 2 Reinforcement 1 | . 1 . . . . . Assault . | . . . . . . . Garrison . | . . . . . . . Intercept . | . . . . . . . Searches Triggered . | . . . . . . . Construction Impeded . | . . . . . . . Haulers Reinforced . | . . . . . . . Active Scanning Responses . | . . . . . . . Cargo Convoy Interrupts 1 | . . . . . . 1 Stealth | -11 -10 -10 -10 -9 -9 -6 --------- Run | Yrd Mat Min Sub Rec Scr Fac Distress Signals 5 | . 4 . . . . 1 Communications Jammed . | . . . . . . . Distress Signals . | . . . . . . . Times Spotted 77 | . 25 . 24 1 . 27 Peak Tracking Total 9 | . 5 . 6 1 . 9 Tactical Retreats 11 | . 2 . 7 . . 2 Traps | -11 -10 -10 -10 -9 -9 -6 ------- Run | Yrd Mat Min Sub Rec Scr Fac Traps Triggered 5 | . 1 . 3 . . 1 Indirectly . | . . . . . . . Trap Hack Attempts . | . . . . . . . Triggered . | . . . . . . . Disarmed . | . . . . . . . Reprogrammed . | . . . . . . . Reused . | . . . . . . . Traps Extracted . | . . . . . . . Installed . | . . . . . . . Triggered . | . . . . . . . Machines | -11 -10 -10 -10 -9 -9 -6 ---------- Run | Yrd Mat Min Sub Rec Scr Fac Machines Disabled 6 | . 1 . 1 . . 4 Max in Single Turn 4 | . 1 . 1 . . 4 Machines Repaired . | . . . . . . . Machines Dismantled . | . . . . . . . Machines Sabotaged . | . . . . . . . Overloaded Fab Kills . | . . . . . . . Hacking | -11 -10 -10 -10 -9 -9 -6 --------- Run | Yrd Mat Min Sub Rec Scr Fac Machines Accessed 25 | . 8 1 1 12 1 2 Terminals 12 | . 6 . . 5 . 1 Fabricators . | . . . . . . . Repair Stations . | . . . . . . . Recycling Units 9 | . 2 . . 7 . . Scanalyzers . | . . . . . . . Garrison Access 1 | . . . . . . 1 Total Hacks 79 | . 26 1 3 37 8 4 Successful 42 | . 10 1 3 19 8 1 Failed 36 | . 15 . . 18 . 3 Catastrophic 6 | . 4 . . 2 . . Database Lockouts 1 | . 1 . . . . . Manual 29 | . 15 . . 14 . . Terminals 33 | . 20 . . 11 . 2 Fabricators . | . . . . . . . Repair Stations . | . . . . . . . Recycling Units 32 | . 6 . . 26 . . Scanalyzers . | . . . . . . . Garrison Access 2 | . . . . . . 2 Terminal Hacks 24 | . 7 1 3 5 8 . Record 11 | . . . 3 . 8 . Part Schematic 1 | . . . . 1 . . Robot Analysis 2 | . 2 . . . . . Open Door 1 | . . 1 . . . . Branch Access Points 1 | . 1 . . . . . Terminal Index 1 | . 1 . . . . . Alert Level 1 | . . . . 1 . . Locate Traps 2 | . 2 . . . . . Registered Components 1 | . 1 . . . . . Zone Layout 3 | . . . . 3 . . Fabricator Hacks . | . . . . . . . Repair Station Hacks . | . . . . . . . Recycling Unit Hacks 8 | . 1 . . 7 . . Retrieve Components 8 | . 1 . . 7 . . Scanalyzer . | . . . . . . . Garrison Access Hacks 1 | . . . . . . 1 Unlock Access 1 | . . . . . . 1 Unauthorized Hacks 9 | . 2 . . 7 . . Terminals . | . . . . . . . Fabricators . | . . . . . . . Repair Stations . | . . . . . . . Recycling Units 9 | . 2 . . 7 . . Tunnel 9 | . 2 . . 7 . . Scanalyzers . | . . . . . . . Garrison Access . | . . . . . . . Data Cores Recovered . | . . . . . . . Used . | . . . . . . . Hacking Detections 14 | . 7 . . 6 . 1 Full Trace Events 4 | . 2 . . 2 . . Feedback Events . | . . . . . . . Feedback Blocked . | . . . . . . . Robot Schematics Acquired . | . . . . . . . Robots Built . | . . . . . . . Authchips . | . . . . . . . Time . | . . . . . . . Total Robot Build Rating . | . . . . . . . Part Schematics Acquired 1 | . . . . 1 . . Parts Built . | . . . . . . . Authchips . | . . . . . . . Time . | . . . . . . . Total Part Build Rating . | . . . . . . . Part Studies Acquired . | . . . . . . . Parts Repaired . | . . . . . . . Time . | . . . . . . . Parts Recycled . | . . . . . . . Recycled Matter . | . . . . . . . Retrieved Matter . | . . . . . . . Retrieved Components 27 | . 8 . . 19 . . Parts Scanalyzed . | . . . . . . . Part Schematics Acquired . | . . . . . . . Parts Damaged . | . . . . . . . Bothacking | -11 -10 -10 -10 -9 -9 -6 ------------ Run | Yrd Mat Min Sub Rec Scr Fac Used RIF Installer . | . . . . . . . Robots Hacked . | . . . . . . . Non-combat . | . . . . . . . Combat . | . . . . . . . Robot Hacks Applied . | . . . . . . . Relay Couplers Released 3 | . . . . . . 3 Programmers 3 | . . . . . . 3 Fabnet Peak Effective % . | . . . . . . . Robots Rewired . | . . . . . . . Allies Hacked . | . . . . . . . Hacks Repelled . | . . . . . . . Allies | -11 -10 -10 -10 -9 -9 -6 -------- Run | Yrd Mat Min Sub Rec Scr Fac Total Allies 2 | . . 2 . . . . Largest Group 2 | . . 2 2 . . . Highest-Rated Group 50 | . . 46 50 . . . Highest-Rated Ally 31 | . . 31 31 . . . Total Orders 3 | . . 1 2 . . . RETURN 3 | . . 1 2 . . . Ally Attacks 51 | . . . 51 . . . Total Damage 493 | . . . 493 . . . Kills 4 | . . . 4 . . . Allies Corrupted . | . . . . . . . Allies Melted . | . . . . . . . Intel | -11 -10 -10 -10 -9 -9 -6 ------- Run | Yrd Mat Min Sub Rec Scr Fac Active Infowar (turns) 888 | 80 430 . . . . 378 Optics 378 | . . . . . . 378 Terrain 510 | 80 430 . . . . . Robot Analysis Total 2 | . 2 . . . . . Derelict Logs Recovered 1 | . . . 1 . . . Drone Launches 11 | . . 1 10 . . . Drone Recoveries 10 | . . 1 9 . . . Exploration | -11 -10 -10 -10 -9 -9 -6 ------------- Run | Yrd Mat Min Sub Rec Scr Fac Turns Passed 10805 | 209 1273 132 3299 1714 3361 817 Spaces Moved 4236 | 91 632 68 1477 609 1029 330 Core 25 | 1 . . 24 . . . Treads 2275 | 90 632 68 744 255 478 8 Legs . | . . . . . . . Wheels 1936 | . . . 709 354 551 322 Hover . | . . . . . . . Flight . | . . . . . . . Fastest Speed 50 | 50 160 160 110 110 190 190 Average Speed 224 | 158 160 160 174 272 324 200 Slowest Speed 480 | 160 320 160 450 480 480 320 Overloaded Moves . | . . . . . . . Propulsion Burnouts . | . . . . . . . Robots Hopped . | . . . . . . . Potential Cave-ins . | . . . . . . . Cave-ins Triggered . | . . . . . . . Exploration Rate (%) 50 | 6 90 22 80 91 59 8 Regions Visited 6 Branch Regions 4 Pre-discovered Areas 10 | . 2 . 1 7 . . Known Exits Taken 1 | . 1 . . . . . Unknown Exits Taken 5 | 1 . 1 1 1 1 . Scrap Searched 7 | . . . 2 . 5 . Spaces Dug 5 | . . . 3 2 . . Terrain Destroyed 20 | . . . 9 2 . 9 Melee 2 | . . . . 2 . . Projectile 9 | . . . 9 . . . AOE 9 | . . . . . . 9 Terrain Rammed . | . . . . . . . Walls Destroyed . | . . . . . . . Machines Disabled . | . . . . . . . Actions | -11 -10 -10 -10 -9 -9 -6 --------- Run | Yrd Mat Min Sub Rec Scr Fac Total 5206 | 122 791 90 2081 658 1055 409 Wait 621 | 4 59 17 514 15 . 12 Move 4230 | 90 631 67 1476 608 1028 330 Hop . | . . . . . . . Pick Up 52 | 4 13 1 5 16 9 4 Fast Attach 22 | 7 1 . 2 . 1 11 Attach 16 | . . . 5 . . 11 Detach . | . . . . . . . Swap 53 | . 10 4 20 9 6 4 Drop 37 | . 14 1 5 6 11 . Fire 170 | 17 61 . 54 2 . 36 Melee 2 | . . . . 2 . . Ram 1 | . . . . . . 1 Kick . | . . . . . . . Crush 2 | . 2 . . . . . Escape Stasis . | . . . . . . . Rewire . | . . . . . . . Trap . | . . . . . . . Miscellaneous . | . . . . . . . Route ------- -11/Scrapyard -10/Materials (discovered 3 exits: [*Mat] / *Min / Sub) -10/Mines -10/Subcaves -9/Recycling (discovered 2 exits: [*Fac] / *Scr) -9/Scraptown -6/Factory (discovered 2 exits: [*Low] / Gar) History --------- Turn | Location | Event 14 | -11/Scrapyard | Discovered new exit (range 15) 210 | -11/Scrapyard | Entered Materials 306 | -10/Materials | Build established: Mutant 384 | -10/Materials | Identified exit to Mines 594 | -10/Materials | Discovered new exit (range 11) 1086 | -10/Materials | Discovered new exit (range 15) 1443 | -10/Materials | Central database locked down 1483 | -10/Materials | Entered Mines 1486 | -10/Mines | Found the Drone Emporium 1495 | -10/Mines | Found Prototype Device 1495 | -10/Mines | Identified Thief Drone Bay 1500 | -10/Mines | Met a Derelict bent on vengeance 1587 | -10/Mines | Discovered new exit (range 13) 1615 | -10/Mines | Entered Subcaves 1615 | -10/Subcaves | Accompanied by 2 allies 1620 | -10/Subcaves | Led the pair of lost Derelicts to an unsafe place 1625 | -10/Subcaves | Learned location of Mines (-10) 1978 | -10/Subcaves | Core integrity fell below 50% 2011 | -10/Subcaves | Lost 3 parts (2n1u) 2050 | -10/Subcaves | Shifting Twisted Machinery released Slug Cannon 2168 | -10/Subcaves | Shifting Twisted Machinery released Sub. Power Source 3098 | -10/Subcaves | Discovered new exit (range 12) 3865 | -10/Subcaves | Core integrity fell below 20% 3873 | -10/Subcaves | Ambushed by Subdweller buried in earth 3904 | -10/Subcaves | Lost 4 parts (1p1n2w) 4084 | -10/Subcaves | Visited Clippyterm 4087 | -10/Subcaves | Learned Factory emergency access door positions 4601 | -10/Subcaves | Ambushed by Subdweller buried in earth 4609 | -10/Subcaves | Build established: Scavenger-Mutant 4914 | -10/Subcaves | Entered Recycling 4915 | -9/Recycling | Met a Zionite searching for Scraptown 5216 | -9/Recycling | Build established: Mutant 5484 | -9/Recycling | Discovered new exit (range 16) 6503 | -9/Recycling | Scanned before Scraplab entrance 6575 | -9/Recycling | Entered Scraplab 6614 | -9/Recycling | Discovered new exit (range 3) 6628 | -9/Recycling | Entered Scraptown 6801 | -9/Scraptown | Visited Comm Corps 6950 | -9/Scraptown | Visited Awakened 8581 | -9/Scraptown | Visited Cyclists 8644 | -9/Scraptown | Visited Cave Peace 8778 | -9/Scraptown | Visited Bundlers 8995 | -9/Scraptown | Visited Red Mages 9058 | -9/Scraptown | Visited Fellowship of the Rings 9397 | -9/Scraptown | Discovered new exit (range 11) 9989 | -9/Scraptown | Entered Factory 9989 | -6/Factory | Evolved 8 slots: Propulsion x2, Utility x5, Weapon x1 10066 | -6/Factory | Identified exit to Garrison 10222 | -6/Factory | Discovered new exit (range 10) 10284 | -6/Factory | Build established: Tank 10569 | -6/Factory | System corruption reached 10% 10611 | -6/Factory | Lost 5 parts (2n1u2w) 10791 | -6/Factory | Cargo convoy interrupted 10806 | -6/Factory | Self-destructed Last Messages --------------- 10798_ P-60 Hacker resets P-60 Hacker, system corruption cleaned. 10798_ Acquired Plasma Rifle. 10798_ Penetrated by Slug. 10798_ Plasma Rifle destroyed. 10799_ Gravmag System destroyed. 10800_ P-60 Hacker resets R-10 Processor, system corruption cleaned. 10800_ EMP Blaster destroyed. 10800_ Penetrated by Slug. 10800_ K-01 Serf collects debris. 10801_ P-60 Hacker resets X-67 Chaingunner, system corruption cleaned. 10802_ Penetrated by Slug. 10802_ Plasma Cutter destroyed. 10802_ Deuterium Engine destroyed. 10802_ H-66 Slayer suffers critical hit (Burn). 10803_ P-60 Hacker resets H-66 Slayer, system corruption cleaned. 10803_ Slug penetrates Wall. 10804_ P-60 Hacker resets H-66 Slayer, system corruption cleaned. 10804_ Plasma Rifle destroyed. 10805_ K-01 Serf collects debris. 10805_ Penetrated by Slug. Map ----- +----------------------------------------------------+ | ?????????????????????????????????????????????????? | | ????????+????????????????????????????????????????? | | ?????????????????????????????????????????????????? | | ?????????????????????????????????????+???????????? | | ?????????????????????????????????????????????????? | | ?????????????????????????????????????????????????? | | ?????????????????????????????????????????????????? | | ?????????????????????????????????????????????????? | | #####????????????????????????????????????????????? | | ? ??????????????????????????????????????????? | | ?? ???????????????? ?????????+?????????????? | | """ """" ???????????? ???????????????????????? | | """ """" """?????? ???????????????????????? | | """ """" """ ??? ???????????????????????? | | ? ???????????????????????? | | """ """" """"?x R ???????????????????????? | | """ """" """" h h ???????????????????????? | | """ """" """" % #??????????????????????? | | h #??????????????????????? | | ! p[%! R #??????????????????????? | | p #??????????????????????? | | #??????????????????????? | | #+###########???????# +??????????????????????? | | % #?########### =! #??????????????????????? | | % %% !#?# # /%=#??????????????????????? | | % =! * #?# ! # !@#??????????????????????? | | =* " #?# # k=#??????????????????????? | | #?# # #####+#????????????????? | | """ ### # #????????????????? | | """"" / + """ """ # #????????????????? | | """"" ### """ """ # # #?????????? | | #?# """ """ # + #?????????? | | ###############+##### ####### #?????????? | | #???????? ??????????? | | #?????????? ??????????? | | #??????????????????????? | | #??????????????????????? | | #??????????????????????? | | ###+#############+#####?????????????????????? | | # # =% #?????????????????????? | | # # #?????????????????????? | | # # =#?????????????????????? | | # #"" #?????????????????????? | | # #"" #?????????????????????? | | # "" "" ! #""" #?????????????????????? | | # "" "" #""" #?????????????????????? | | # """ """ #""" #?????????????????????? | | # """ """ # #?????????????????????? | | # """ """ ####+#####?????????????????????? | | # #### #?????????????????????????? | +----------------------------------------------------+ Best States ------------- Heat Dissipation 73 Energy Generation 18 Energy Capacity 275 Matter Stores 300 Matter Capacity 300 Sight Range 21 Terrain Scan Range 16 Terrain Scan Density 10 Armor Coverage 225 Evasion (%) 40 Target Analysis 6 Recoil Reduction 2 Kinecelleration 30 Authchip Count 10 Item Schematics ----------------- Greatsword | -9/Recycling | Hacked Robot Schematics ------------------ None Fabricated ------------ Nothing Repaired ---------- Nothing Studied --------- None Alien Tech Used ----------------- None Achievements -------------- None Challenges ------------ None Game ------ Seed SpectralCouplerMachine Manual? 0 Play Time 00:49:13 Cumulative 170.2 hours Start 2025.12.12 @ 22:39:13 End 2025.12.13 @ 11:37:39 Sessions 3 Manual Loads 0 Difficulty Rogue Special Mode None Game No. 254 Rogue 254 Adventurer 0 Explorer 0 Win Type - Total 1 Types 1/0/0/0/0/0/0/0/0/0 Lore% 59 Gallery% 58 Achievement% 49 Wizard Run 0 Options --------- Layout 0 ASCII 0 Keyboard 0 Movement Numpad Keybinds 0 Fullscreen 1 Font 24/Smallcaps Map View 76x50 Zoom Use 0% Tactical HUD 1 Map Filters NONE Filters NONE Steam 1 RUN: b85d3833-33dc-4e2e-b841-20c4c62e9bac